[Event "Live Chess"]
[Site "Chess.com"]
[Date "2023.05.21"]
[Round "-"]
[White "maxwalden"]
[Black "TheSmoulderingMaster"]
[Result "1/2-1/2"]
[WhiteElo "1218"]
[BlackElo "1684"]
[TimeControl "300"]
[EndTime "1:10:18 PDT"]
[Termination "Game drawn by agreement"]

1. d3 {[%clk 0:04:59.7]} 1... Nf6 {[%clk 0:04:57.7]} 2. Bf4 {[%clk 0:04:56.2]}
2... d6 {[%clk 0:04:57]} 3. Nf3 {[%clk 0:04:53.9]} 3... g6 {[%clk 0:04:56.4]} 4.
e4 {[%clk 0:04:52.9]} 4... Bg7 {[%clk 0:04:55.6]} 5. Nc3 {[%clk 0:04:49.8]} 5...
O-O {[%clk 0:04:54.7]} 6. Be2 {[%clk 0:04:44.3]} 6... c5 {[%clk 0:04:53.7]} 7.
O-O {[%clk 0:04:43.1]} 7... Nc6 {[%clk 0:04:52.7]} 8. Nd5 {[%clk 0:04:39.8]}
8... e6 {[%clk 0:04:50.9]} 9. Nxf6+ {[%clk 0:04:38.3]} 9... Qxf6 {[%clk
0:04:49.5]} 10. Bxd6 {[%clk 0:04:35.2]} 10... Rd8 {[%clk 0:04:47.8]} 11. Bxc5
{[%clk 0:04:32.2]} 11... Qxb2 {[%clk 0:04:45.6]} 12. Rb1 {[%clk 0:04:30.5]}
12... Qxa2 {[%clk 0:04:44]} 13. d4 {[%clk 0:04:20]} 13... b6 {[%clk 0:04:37.5]}
14. Bb4 {[%clk 0:04:16.5]} 14... Ba6 {[%clk 0:04:26.5]} 15. Bxa6 {[%clk
0:04:14.4]} 15... Qxa6 {[%clk 0:04:24.2]} 16. Bd2 {[%clk 0:04:04.5]} 16... Nxd4
{[%clk 0:04:21.4]} 17. Nxd4 {[%clk 0:04:03.1]} 17... Rxd4 {[%clk 0:04:19.8]} 18.
Qc1 {[%clk 0:03:57.5]} 18... Rad8 {[%clk 0:04:16]} 19. Bh6 {[%clk 0:03:52.6]}
19... Rxe4 {[%clk 0:04:15]} 20. Bxg7 {[%clk 0:03:50.7]} 20... Kxg7 {[%clk
0:04:13.9]} 21. Qb2+ {[%clk 0:03:49.1]} 21... Kg8 {[%clk 0:04:07.3]} 22. Rfe1
{[%clk 0:03:47.1]} 22... Rxe1+ {[%clk 0:04:05.8]} 23. Rxe1 {[%clk 0:03:46.5]}
23... Qc4 {[%clk 0:04:02.3]} 24. Qa1 {[%clk 0:03:38.7]} 24... Qxc2 {[%clk
0:03:59.3]} 25. Qxa7 {[%clk 0:03:37.3]} 25... b5 {[%clk 0:03:57.2]} 26. Qb6
{[%clk 0:03:33.6]} 26... Qd2 {[%clk 0:03:51.9]} 27. Rf1 {[%clk 0:03:23.5]} 27...
b4 {[%clk 0:03:49.6]} 28. g3 {[%clk 0:03:17.9]} 28... Rd6 {[%clk 0:03:47]} 29.
Qb8+ {[%clk 0:03:13.3]} 29... Kg7 {[%clk 0:03:39.5]} 30. Rb1 {[%clk 0:03:08.8]}
30... Rd4 {[%clk 0:03:32.6]} 31. Qe5+ {[%clk 0:03:01.5]} 31... Kh6 {[%clk
0:03:30]} 32. Qf6 {[%clk 0:02:52.4]} 32... Rd7 {[%clk 0:03:05.7]} 33. Qh4+
{[%clk 0:02:35.5]} 33... Kg7 {[%clk 0:03:03.4]} 34. Qxb4 {[%clk 0:02:32.9]}
34... Qxb4 {[%clk 0:03:01.6]} 35. Rxb4 {[%clk 0:02:32.8]} 35... f5 {[%clk
0:02:57.6]} 36. Kg2 {[%clk 0:02:30]} 36... Kf6 {[%clk 0:02:56.7]} 37. h4 {[%clk
0:02:28.1]} 37... h6 {[%clk 0:02:54.9]} 38. Rb3 {[%clk 0:02:26.1]} 38... e5
{[%clk 0:02:54]} 39. Kf3 {[%clk 0:02:22.8]} 39... Rd6 {[%clk 0:02:52.7]} 40. g4
{[%clk 0:02:21.6]} 40... e4+ {[%clk 0:02:50]} 41. Kf4 {[%clk 0:02:19.5]} 41...
Rd2 {[%clk 0:02:48]} 42. g5+ {[%clk 0:02:14]} 42... hxg5+ {[%clk 0:02:46.3]} 43.
hxg5+ {[%clk 0:02:13.2]} 43... Kf7 {[%clk 0:02:44.8]} 44. Ke3 {[%clk 0:02:08]}
44... Rd1 {[%clk 0:02:39.9]} 45. Rb7+ {[%clk 0:02:02.9]} 45... Kf8 {[%clk
0:02:38]} 46. Rb6 {[%clk 0:01:57.8]} 46... Rd3+ {[%clk 0:02:33.2]} 47. Ke2
{[%clk 0:01:55.5]} 47... Kf7 {[%clk 0:02:22]} 48. Rb7+ {[%clk 0:01:54]} 48...
Ke6 {[%clk 0:02:19.9]} 49. Rb6+ {[%clk 0:01:53.2]} 49... Ke5 {[%clk 0:02:19.1]}
50. Rxg6 {[%clk 0:01:51.9]} 50... f4 {[%clk 0:02:17.8]} 51. Rg8 {[%clk
0:01:47.4]} 51... f3+ {[%clk 0:02:17]} 52. Ke1 {[%clk 0:01:44.7]} 52... Kf5
{[%clk 0:02:13.1]} 53. g6 {[%clk 0:01:41.8]} 53... Kf6 {[%clk 0:02:11.3]} 54.
Re8 {[%clk 0:01:33]} 54... Rd4 {[%clk 0:02:08.3]} 55. Rg8 {[%clk 0:01:28.1]}
55... Ra4 {[%clk 0:02:04.6]} 56. Kd2 {[%clk 0:01:17.8]} 56... Ra2+ {[%clk
0:02:02]} 57. Ke3 {[%clk 0:01:16.8]} 57... Re2+ {[%clk 0:02:00.5]} 58. Kf4
{[%clk 0:01:13.2]} 58... Rxf2 {[%clk 0:01:45.2]} 59. Kxe4 {[%clk 0:01:12.3]}
59... Rf1 {[%clk 0:01:43.4]} 60. Rf8+ {[%clk 0:01:10.4]} 60... Kxg6 {[%clk
0:01:42]} 61. Rxf3 {[%clk 0:01:09.4]} 61... Re1+ {[%clk 0:01:41.3]} 62. Kf4
{[%clk 0:01:06.4]} 62... Re8 {[%clk 0:01:39]} 63. Rg3+ {[%clk 0:01:02.9]} 63...
Kh5 {[%clk 0:01:35.3]} 64. Kf5 {[%clk 0:00:58.8]} 64... Rf8+ {[%clk 0:01:32.8]}
65. Ke6 {[%clk 0:00:56.5]} 1/2-1/2

[Event "Live Chess"]
[Site "Chess.com"]
[Date "2023.05.21"]
[Round "-"]
[White "Mugzwang"]
[Black "AttackingSnowLeopard"]
[Result "0-1"]
[WhiteElo "1531"]
[BlackElo "2202"]
[TimeControl "300"]
[EndTime "1:10:48 PDT"]
[Termination "AttackingSnowLeopard won by resignation"]

1. Nf3 {[%clk 0:04:57]} 1... d5 {[%clk 0:04:49.3]} 2. c4 {[%clk 0:04:50.2]} 2...
Nf6 {[%clk 0:04:48.9]} 3. g3 {[%clk 0:04:46.2]} 3... c6 {[%clk 0:04:47.3]} 4.
Bg2 {[%clk 0:04:45.6]} 4... Bg4 {[%clk 0:04:46.5]} 5. O-O {[%clk 0:04:44.7]}
5... Nbd7 {[%clk 0:04:45.7]} 6. b3 {[%clk 0:04:41.3]} 6... e6 {[%clk 0:04:44.8]}
7. Bb2 {[%clk 0:04:40.3]} 7... Be7 {[%clk 0:04:44.1]} 8. Nc3 {[%clk 0:04:38.8]}
8... O-O {[%clk 0:04:43.5]} 9. cxd5 {[%clk 0:04:35.6]} 9... exd5 {[%clk
0:04:41.7]} 10. d3 {[%clk 0:04:33.4]} 10... Re8 {[%clk 0:04:39.7]} 11. Qc2
{[%clk 0:04:27.8]} 11... Bf8 {[%clk 0:04:36.7]} 12. e4 {[%clk 0:04:15]} 12...
dxe4 {[%clk 0:04:31.5]} 13. dxe4 {[%clk 0:04:11.1]} 13... Nc5 {[%clk 0:04:28.2]}
14. Rad1 {[%clk 0:04:08.4]} 14... Qc7 {[%clk 0:04:25.2]} 15. b4 {[%clk
0:03:47.1]} 15... Ncxe4 {[%clk 0:04:19.3]} 16. Nb5 {[%clk 0:03:31.6]} 16... Qb6
{[%clk 0:04:13.5]} 17. Nd6 {[%clk 0:03:21.5]} 17... Bxd6 {[%clk 0:04:08.5]} 18.
Bxf6 {[%clk 0:03:11.5]} 18... Nxf6 {[%clk 0:04:03.1]} 19. Rxd6 {[%clk
0:03:05.3]} 19... Qxb4 {[%clk 0:04:02.6]} 20. Rd4 {[%clk 0:02:38.1]} 20... Qe7
{[%clk 0:03:53.1]} 21. Re1 {[%clk 0:02:14.7]} 21... Qxe1+ {[%clk 0:03:49.6]} 22.
Nxe1 {[%clk 0:02:12.7]} 22... Rxe1+ {[%clk 0:03:49.5]} 23. Bf1 {[%clk
0:02:11.8]} 23... Bh3 {[%clk 0:03:49.2]} 24. Rd1 {[%clk 0:02:05.1]} 24... Rxf1+
{[%clk 0:03:25.8]} 25. Rxf1 {[%clk 0:02:01.6]} 25... Bxf1 {[%clk 0:03:25.7]} 26.
Kxf1 {[%clk 0:02:00.5]} 26... Nd5 {[%clk 0:03:23.1]} 27. Qb3 {[%clk 0:01:49.9]}
27... b6 {[%clk 0:03:20.4]} 28. Qc4 {[%clk 0:01:42.4]} 28... Rc8 {[%clk
0:03:18.9]} 29. Qa6 {[%clk 0:01:38.2]} 29... Rc7 {[%clk 0:03:17.4]} 30. Qe2
{[%clk 0:01:20.9]} 30... g6 {[%clk 0:03:10]} 31. Qe8+ {[%clk 0:01:06.2]} 31...
Kg7 {[%clk 0:03:09.2]} 32. Qe5+ {[%clk 0:01:05.1]} 32... f6 {[%clk 0:03:08.2]}
33. Qe8 {[%clk 0:00:52.7]} 33... b5 {[%clk 0:03:01.9]} 34. Ke2 {[%clk
0:00:44.9]} 34... Re7+ {[%clk 0:03:00]} 35. Qxe7+ {[%clk 0:00:43]} 35... Nxe7
{[%clk 0:02:59.9]} 0-1

[Event "Live Chess"]
[Site "Chess.com"]
[Date "2023.05.21"]
[Round "-"]
[White "MJMykh"]
[Black "LiamClery2020"]
[Result "0-1"]
[WhiteElo "1110"]
[BlackElo "2026"]
[TimeControl "300"]
[EndTime "1:10:54 PDT"]
[Termination "LiamClery2020 won by checkmate"]

1. e4 {[%clk 0:04:58.9]} 1... Nf6 {[%clk 0:04:59.9]} 2. Nc3 {[%clk 0:04:55.7]}
2... e5 {[%clk 0:04:58]} 3. Nf3 {[%clk 0:04:54.6]} 3... Nc6 {[%clk 0:04:55.9]}
4. Bc4 {[%clk 0:04:53.8]} 4... Nxe4 {[%clk 0:04:54.5]} 5. Nxe4 {[%clk
0:04:52.1]} 5... d5 {[%clk 0:04:53.7]} 6. Bd3 {[%clk 0:04:52]} 6... dxe4 {[%clk
0:04:53]} 7. Bxe4 {[%clk 0:04:51.6]} 7... Bd6 {[%clk 0:04:52.9]} 8. Bxc6+ {[%clk
0:04:51.1]} 8... bxc6 {[%clk 0:04:52.8]} 9. O-O {[%clk 0:04:50.8]} 9... O-O
{[%clk 0:04:52.2]} 10. h3 {[%clk 0:04:50]} 10... e4 {[%clk 0:04:51.1]} 11. Ne1
{[%clk 0:04:47.4]} 11... Re8 {[%clk 0:04:49.9]} 12. d3 {[%clk 0:04:46.7]} 12...
exd3 {[%clk 0:04:48.1]} 13. Nxd3 {[%clk 0:04:45.2]} 13... Qf6 {[%clk 0:04:47.5]}
14. Re1 {[%clk 0:04:41.3]} 14... Ba6 {[%clk 0:04:46]} 15. Rxe8+ {[%clk
0:04:39.7]} 15... Rxe8 {[%clk 0:04:45.9]} 16. a3 {[%clk 0:04:33.5]} 16... Bxd3
{[%clk 0:04:44.5]} 17. cxd3 {[%clk 0:04:29.4]} 17... Bc5 {[%clk 0:04:40]} 18.
Qf1 {[%clk 0:04:19.7]} 18... Qxf2+ {[%clk 0:04:30.8]} 19. Qxf2 {[%clk
0:04:17.8]} 19... Re1+ {[%clk 0:04:30.3]} 20. Kh2 {[%clk 0:04:13.8]} 20... Bxf2
{[%clk 0:04:30.2]} 21. Rb1 {[%clk 0:04:11.1]} 21... Be3 {[%clk 0:04:27.6]} 22.
Bxe3 {[%clk 0:04:04.6]} 22... Rxb1 {[%clk 0:04:17.4]} 23. Bxa7 {[%clk
0:04:03.6]} 23... Rxb2 {[%clk 0:04:15.1]} 24. a4 {[%clk 0:04:02.1]} 24... Ra2
{[%clk 0:04:13.7]} 25. Bb8 {[%clk 0:04:00.6]} 25... Rxa4 {[%clk 0:04:11.3]} 26.
Bxc7 {[%clk 0:04:00.5]} 26... Rd4 {[%clk 0:04:09.9]} 27. Be5 {[%clk 0:03:55.7]}
27... Rxd3 {[%clk 0:04:08.9]} 28. Bf4 {[%clk 0:03:53.2]} 28... c5 {[%clk
0:04:07.7]} 29. Kg1 {[%clk 0:03:50.8]} 29... c4 {[%clk 0:04:06.8]} 30. Kf2
{[%clk 0:03:50.3]} 30... c3 {[%clk 0:04:05.5]} 31. Ke2 {[%clk 0:03:49.9]} 31...
Rd4 {[%clk 0:04:04.2]} 32. Be3 {[%clk 0:03:48.1]} 32... Rd7 {[%clk 0:04:03.3]}
33. g4 {[%clk 0:03:43.6]} 33... c2 {[%clk 0:04:02]} 34. h4 {[%clk 0:03:41.5]}
34... Re7 {[%clk 0:04:00.4]} 35. Kd2 {[%clk 0:03:32.4]} 35... Rxe3 {[%clk
0:03:55.2]} 36. Kxc2 {[%clk 0:03:29.4]} 36... Re4 {[%clk 0:03:53.8]} 37. g5
{[%clk 0:03:27.5]} 37... Rxh4 {[%clk 0:03:52.8]} 38. g6 {[%clk 0:03:26.6]} 38...
hxg6 {[%clk 0:03:51.8]} 39. Kd3 {[%clk 0:03:26.5]} 39... Rf4 {[%clk 0:03:51.3]}
40. Ke2 {[%clk 0:03:26.2]} 40... Rf6 {[%clk 0:03:51.2]} 41. Ke3 {[%clk 0:03:25]}
41... g5 {[%clk 0:03:51.1]} 42. Ke2 {[%clk 0:03:24.7]} 42... g4 {[%clk 0:03:51]}
43. Ke1 {[%clk 0:03:24.2]} 43... g3 {[%clk 0:03:50.9]} 44. Ke2 {[%clk
0:03:23.9]} 44... g2 {[%clk 0:03:50.8]} 45. Ke3 {[%clk 0:03:23.7]} 45... g1=Q+
{[%clk 0:03:50.7]} 46. Ke2 {[%clk 0:03:23.5]} 46... Re6+ {[%clk 0:03:49]} 47.
Kd3 {[%clk 0:03:23.4]} 47... Qe3+ {[%clk 0:03:48.3]} 48. Kc4 {[%clk 0:03:23]}
48... Rc6+ {[%clk 0:03:48.1]} 49. Kb5 {[%clk 0:03:22.1]} 49... Qc5+ {[%clk
0:03:47.6]} 50. Ka4 {[%clk 0:03:20.9]} 50... Ra6+ {[%clk 0:03:47.5]} 51. Kb3
{[%clk 0:03:19.9]} 51... Ra3+ {[%clk 0:03:47.4]} 52. Kb2 {[%clk 0:03:19]} 52...
Qc3+ {[%clk 0:03:47.3]} 53. Kb1 {[%clk 0:03:18.1]} 53... Ra1# {[%clk 0:03:47.2]}
0-1

[Event "Live Chess"]
[Site "Chess.com"]
[Date "2023.05.21"]
[Round "-"]
[White "whitedjohn"]
[Black "LGC4YOU"]
[Result "1-0"]
[WhiteElo "1640"]
[BlackElo "1184"]
[TimeControl "300"]
[EndTime "1:10:56 PDT"]
[Termination "whitedjohn won by checkmate"]

1. e4 {[%clk 0:04:58.2]} 1... c5 {[%clk 0:04:59.9]} 2. Nf3 {[%clk 0:04:56.6]}
2... Nc6 {[%clk 0:04:59.4]} 3. d4 {[%clk 0:04:55.3]} 3... cxd4 {[%clk
0:04:58.5]} 4. Nxd4 {[%clk 0:04:54.1]} 4... e6 {[%clk 0:04:57.7]} 5. Nc3 {[%clk
0:04:51.8]} 5... g6 {[%clk 0:04:55.9]} 6. Ndb5 {[%clk 0:04:47]} 6... a6 {[%clk
0:04:51.2]} 7. Nd6+ {[%clk 0:04:45.2]} 7... Bxd6 {[%clk 0:04:49.4]} 8. Qxd6
{[%clk 0:04:43.9]} 8... Qe7 {[%clk 0:04:45.7]} 9. Qxe7+ {[%clk 0:04:41.5]} 9...
Ngxe7 {[%clk 0:04:44.4]} 10. Bg5 {[%clk 0:04:40.5]} 10... O-O {[%clk 0:04:42.8]}
11. O-O-O {[%clk 0:04:37.8]} 11... d5 {[%clk 0:04:40.4]} 12. Bxe7 {[%clk
0:04:28.2]} 12... Nxe7 {[%clk 0:04:37.5]} 13. exd5 {[%clk 0:04:27.1]} 13... exd5
{[%clk 0:04:35.8]} 14. Nxd5 {[%clk 0:04:25.4]} 14... Nxd5 {[%clk 0:04:34.7]} 15.
Rxd5 {[%clk 0:04:23.9]} 15... Be6 {[%clk 0:04:33.8]} 16. Rd6 {[%clk 0:04:19.5]}
16... Bxa2 {[%clk 0:04:31.7]} 17. b3 {[%clk 0:04:18.5]} 17... a5 {[%clk
0:04:27.6]} 18. Kb2 {[%clk 0:04:17.3]} 18... a4 {[%clk 0:04:20.5]} 19. Kxa2
{[%clk 0:04:16.2]} 19... axb3+ {[%clk 0:04:18.7]} 20. Kxb3 {[%clk 0:04:15.4]}
20... b5 {[%clk 0:04:15.5]} 21. Bxb5 {[%clk 0:04:08]} 21... Rfb8 {[%clk
0:04:14.4]} 22. c4 {[%clk 0:04:06.6]} 22... Kg7 {[%clk 0:04:09.7]} 23. Rhd1
{[%clk 0:04:03.9]} 23... h5 {[%clk 0:04:06]} 24. Rd7 {[%clk 0:04:02.1]} 24...
Rf8 {[%clk 0:04:02.2]} 25. Re7 {[%clk 0:03:54.9]} 25... Rad8 {[%clk 0:03:56.3]}
26. Rxd8 {[%clk 0:03:51]} 26... Rxd8 {[%clk 0:03:56.2]} 27. Re2 {[%clk
0:03:44.3]} 27... Kh6 {[%clk 0:03:50.8]} 28. Kb4 {[%clk 0:03:42.7]} 28... f5
{[%clk 0:03:49.1]} 29. c5 {[%clk 0:03:41.5]} 29... g5 {[%clk 0:03:47.3]} 30. c6
{[%clk 0:03:40.1]} 30... g4 {[%clk 0:03:46.4]} 31. Kc5 {[%clk 0:03:38.8]} 31...
f4 {[%clk 0:03:42.1]} 32. c7 {[%clk 0:03:37.3]} 32... Rc8 {[%clk 0:03:41.3]} 33.
Kc6 {[%clk 0:03:35.6]} 33... f3 {[%clk 0:03:40.4]} 34. gxf3 {[%clk 0:03:33.9]}
34... gxf3 {[%clk 0:03:39.5]} 35. Re3 {[%clk 0:03:32.6]} 35... Rg8 {[%clk
0:03:35.2]} 36. Rxf3 {[%clk 0:03:29.9]} 36... Rg2 {[%clk 0:03:33.7]} 37. h3
{[%clk 0:03:27.9]} 37... Rg1 {[%clk 0:03:28.9]} 38. c8=Q {[%clk 0:03:21.7]}
38... Rc1+ {[%clk 0:03:28.2]} 39. Kb7 {[%clk 0:03:20.5]} 39... Rxc8 {[%clk
0:03:27.5]} 40. Kxc8 {[%clk 0:03:19.6]} 40... Kg5 {[%clk 0:03:27]} 41. Rg3+
{[%clk 0:03:17.1]} 41... Kf4 {[%clk 0:03:25.9]} 42. Kd7 {[%clk 0:03:14.7]} 42...
h4 {[%clk 0:03:25]} 43. Ra3 {[%clk 0:03:10.3]} 43... Ke4 {[%clk 0:03:22.4]} 44.
Ke6 {[%clk 0:03:07.9]} 44... Kd4 {[%clk 0:03:18.8]} 45. Ra4+ {[%clk 0:03:06.7]}
45... Kc5 {[%clk 0:03:18.4]} 46. Rxh4 {[%clk 0:03:05.2]} 46... Kxb5 {[%clk
0:03:17.4]} 47. Kd5 {[%clk 0:03:04.1]} 47... Kb6 {[%clk 0:03:16.8]} 48. Rc4
{[%clk 0:03:03.4]} 48... Kb7 {[%clk 0:03:15.6]} 49. Rc6 {[%clk 0:03:02]} 49...
Kb8 {[%clk 0:03:13.6]} 50. Kc5 {[%clk 0:03:00.7]} 50... Kb7 {[%clk 0:03:12.6]}
51. Kb5 {[%clk 0:02:59.7]} 51... Kb8 {[%clk 0:03:11]} 52. Kb6 {[%clk 0:02:58.3]}
52... Ka8 {[%clk 0:03:09.2]} 53. Rc8# {[%clk 0:02:57.5]} 1-0

[Event "Live Chess"]
[Site "Chess.com"]
[Date "2023.05.21"]
[Round "-"]
[White "Singapourfeuj"]
[Black "Rusty_Bridges"]
[Result "1-0"]
[WhiteElo "2183"]
[BlackElo "1528"]
[TimeControl "300"]
[EndTime "1:11:11 PDT"]
[Termination "Singapourfeuj won by resignation"]

1. d4 {[%clk 0:04:57.6]} 1... g6 {[%clk 0:04:55]} 2. h4 {[%clk 0:04:56.8]} 2...
Bg7 {[%clk 0:04:54.3]} 3. h5 {[%clk 0:04:56.2]} 3... Nf6 {[%clk 0:04:51.1]} 4.
h6 {[%clk 0:04:55.4]} 4... Bf8 {[%clk 0:04:49.2]} 5. Nc3 {[%clk 0:04:54.5]} 5...
d5 {[%clk 0:04:46.9]} 6. Bg5 {[%clk 0:04:52.9]} 6... Nbd7 {[%clk 0:04:40.5]} 7.
f3 {[%clk 0:04:51.7]} 7... b6 {[%clk 0:04:38]} 8. e4 {[%clk 0:04:50.6]} 8...
dxe4 {[%clk 0:04:36]} 9. fxe4 {[%clk 0:04:49.8]} 9... Bb7 {[%clk 0:04:32.2]} 10.
Bd3 {[%clk 0:04:47.7]} 10... c5 {[%clk 0:04:25]} 11. d5 {[%clk 0:04:46.2]} 11...
Qc7 {[%clk 0:04:17.6]} 12. Nge2 {[%clk 0:04:43.3]} 12... Ne5 {[%clk 0:04:11.4]}
13. Bxf6 {[%clk 0:04:31.4]} 13... exf6 {[%clk 0:04:09]} 14. Bb5+ {[%clk
0:04:29.9]} 14... Nd7 {[%clk 0:04:02.7]} 15. O-O {[%clk 0:04:25.6]} 15... a6
{[%clk 0:04:00.4]} 16. Bxd7+ {[%clk 0:04:23.9]} 16... Qxd7 {[%clk 0:03:58.7]}
17. Rxf6 {[%clk 0:04:22.9]} 17... Bxh6 {[%clk 0:03:45.8]} 18. e5 {[%clk
0:04:20]} 18... Be3+ {[%clk 0:03:41.5]} 19. Kf1 {[%clk 0:04:16]} 19... O-O-O
{[%clk 0:03:25.2]} 20. Qd3 {[%clk 0:04:13.8]} 20... Bg5 {[%clk 0:03:18.9]} 21.
Rxb6 {[%clk 0:04:11.5]} 21... h5 {[%clk 0:03:13.8]} 22. Rd1 {[%clk 0:04:08.5]}
22... h4 {[%clk 0:03:11.2]} 23. e6 {[%clk 0:04:05.2]} 23... fxe6 {[%clk
0:03:08.3]} 24. dxe6 {[%clk 0:04:03.7]} 24... Qe7 {[%clk 0:02:43.5]} 25. Qxg6
{[%clk 0:03:56.5]} 25... Rdg8 {[%clk 0:02:38.3]} 26. Qd3 {[%clk 0:03:51.9]}
26... h3 {[%clk 0:01:41.6]} 27. Qd7+ {[%clk 0:03:48.5]} 27... Qxd7 {[%clk
0:01:38.5]} 28. exd7+ {[%clk 0:03:34.2]} 28... Kb8 {[%clk 0:01:35.1]} 29. gxh3
{[%clk 0:03:31.1]} 29... Bd8 {[%clk 0:01:27.5]} 30. Rxb7+ {[%clk 0:03:22.1]}
30... Kxb7 {[%clk 0:01:24.7]} 31. Nf4 {[%clk 0:03:21.4]} 31... Rf8 {[%clk
0:01:14.4]} 32. Ne2 {[%clk 0:03:20.2]} 32... Rxh3 {[%clk 0:01:08.8]} 33. Kg2
{[%clk 0:03:19]} 33... Rh7 {[%clk 0:01:02.2]} 34. Rd5 {[%clk 0:03:13.2]} 34...
Kc6 {[%clk 0:00:58.4]} 35. c4 {[%clk 0:03:10.7]} 35... Rxd7 {[%clk 0:00:56.3]}
36. Rxd7 {[%clk 0:03:03.6]} 36... Kxd7 {[%clk 0:00:54.7]} 37. Kf3 {[%clk
0:03:02.5]} 37... Bc7 {[%clk 0:00:51.1]} 38. Ke4 {[%clk 0:03:01.5]} 38... Kc6
{[%clk 0:00:47.9]} 39. b3 {[%clk 0:02:58.2]} 39... a5 {[%clk 0:00:43.4]} 40. Nd5
{[%clk 0:02:56.7]} 40... Re8+ {[%clk 0:00:38.6]} 41. Kd3 {[%clk 0:02:55.6]}
41... Be5 {[%clk 0:00:34.2]} 42. a4 {[%clk 0:02:49.5]} 42... Bd4 {[%clk
0:00:32.5]} 43. Nxd4+ {[%clk 0:02:48.1]} 43... cxd4 {[%clk 0:00:31.8]} 44. Kxd4
{[%clk 0:02:47.4]} 44... Rb8 {[%clk 0:00:30.1]} 45. Kc3 {[%clk 0:02:46.3]} 45...
Kc5 {[%clk 0:00:28.4]} 46. Nc7 {[%clk 0:02:44]} 46... Rb7 {[%clk 0:00:25.7]} 47.
Ne6+ {[%clk 0:02:41.1]} 47... Kd6 {[%clk 0:00:23.8]} 48. Nd4 {[%clk 0:02:39.2]}
48... Kc5 {[%clk 0:00:22.5]} 49. Ne6+ {[%clk 0:02:38.1]} 49... Kd6 {[%clk
0:00:21.4]} 50. Nf4 {[%clk 0:02:37.4]} 50... Kc5 {[%clk 0:00:19.9]} 51. Nd3+
{[%clk 0:02:36.6]} 51... Kd6 {[%clk 0:00:18.9]} 52. Nb2 {[%clk 0:02:27.6]} 52...
Rh7 {[%clk 0:00:17.4]} 53. Nd3 {[%clk 0:02:24.6]} 53... Rh3 {[%clk 0:00:16.3]}
54. Kd4 {[%clk 0:02:23.7]} 54... Rh4+ {[%clk 0:00:13.5]} 55. Kc3 {[%clk
0:02:22.8]} 55... Kc6 {[%clk 0:00:12.2]} 56. c5 {[%clk 0:02:20.7]} 56... Rh3
{[%clk 0:00:10.2]} 57. Kc4 {[%clk 0:02:18.5]} 57... Rxd3 {[%clk 0:00:09]} 58.
Kxd3 {[%clk 0:02:17.6]} 58... Kxc5 {[%clk 0:00:08.9]} 59. Kc3 {[%clk 0:02:16.9]}
59... Kb6 {[%clk 0:00:08.2]} 60. Kd4 {[%clk 0:02:15.3]} 60... Kc6 {[%clk
0:00:07.3]} 61. Kc4 {[%clk 0:02:14.4]} 61... Kb6 {[%clk 0:00:06.6]} 62. Kd5
{[%clk 0:02:13.4]} 62... Ka6 {[%clk 0:00:05.2]} 63. Kc5 {[%clk 0:02:12.5]} 63...
Kb7 {[%clk 0:00:04.2]} 64. Kb5 {[%clk 0:02:11.8]} 64... Ka7 {[%clk 0:00:03.3]}
65. Kxa5 {[%clk 0:02:10.5]} 1-0

[Event "Live Chess"]
[Site "Chess.com"]
[Date "2023.05.21"]
[Round "-"]
[White "ProfPoisson"]
[Black "SiDebanks"]
[Result "0-1"]
[WhiteElo "1181"]
[BlackElo "1345"]
[TimeControl "300"]
[EndTime "1:11:12 PDT"]
[Termination "SiDebanks won by resignation"]

1. e4 {[%clk 0:04:57.7]} 1... c6 {[%clk 0:04:59.4]} 2. d4 {[%clk 0:04:54.4]}
2... d5 {[%clk 0:04:59.3]} 3. exd5 {[%clk 0:04:52.5]} 3... cxd5 {[%clk
0:04:59.2]} 4. c4 {[%clk 0:04:50.6]} 4... Nc6 {[%clk 0:04:59.1]} 5. Nf3 {[%clk
0:04:43.9]} 5... Bg4 {[%clk 0:04:52.1]} 6. Be2 {[%clk 0:04:40.2]} 6... dxc4
{[%clk 0:04:41.6]} 7. O-O {[%clk 0:04:29]} 7... Bxf3 {[%clk 0:04:35.5]} 8. Bxf3
{[%clk 0:04:22.2]} 8... Nf6 {[%clk 0:04:02.8]} 9. Bxc6+ {[%clk 0:04:12.6]} 9...
bxc6 {[%clk 0:04:01.3]} 10. Nc3 {[%clk 0:04:11.7]} 10... e6 {[%clk 0:03:57.4]}
11. Re1 {[%clk 0:04:02.9]} 11... Be7 {[%clk 0:03:40.3]} 12. Ne4 {[%clk
0:03:56.6]} 12... O-O {[%clk 0:03:28.5]} 13. Nxf6+ {[%clk 0:03:54.4]} 13... Bxf6
{[%clk 0:03:26.6]} 14. Rb1 {[%clk 0:03:47.1]} 14... Qxd4 {[%clk 0:03:07.2]} 15.
Be3 {[%clk 0:03:29]} 15... Qxd1 {[%clk 0:02:48.3]} 16. Rexd1 {[%clk 0:03:27.5]}
16... Rfb8 {[%clk 0:02:12.8]} 17. Bd4 {[%clk 0:03:10.4]} 17... Bxd4 {[%clk
0:01:50.6]} 18. Rxd4 {[%clk 0:03:07.7]} 18... c3 {[%clk 0:01:43.9]} 19. b3
{[%clk 0:02:57.4]} 19... c2 {[%clk 0:01:14.3]} 20. Rc1 {[%clk 0:02:55.8]} 20...
Rd8 {[%clk 0:01:13.3]} 21. Rxd8+ {[%clk 0:02:42.8]} 21... Rxd8 {[%clk 0:01:12]}
22. Kf1 {[%clk 0:02:36.5]} 22... Rd1+ {[%clk 0:01:08.4]} 0-1